bitfinex-derivatives/quotes_ETHF0:USTF0_20250929
["timestamp","ask_amount","ask_price","bid_price","bid_amount"]
[1759152832656,0.3073,4110.9,4110.8,0.68967]
[1759152832851,0.74496,4110.9,4110.8,0.68967]
[1759152833057,0.43768,4110.7,4110.6,0.43769]
[1759152833255,0.74499,4110.6,4110.5,0.00230982]
[1759152833757,41.54499,4110.6,4110.5,0.25430982]
[1759152835858,41.54499,4110.6,4110.5,0.00230982]
[1759152836058,41.54499,4110.6,4110.5,0.25430982]
[1759152836255,41.1073,4110.6,4110.5,0.56710982]
[1759152836460,41.1073,4110.6,4110.5,0.00230982]
[1759152836759,41.1073,4110.6,4110.5,0.25430982]
[1759152838255,41.1073,4110.6,4110.5,0.56710982]
[1759152838456,0.3073,4110.6,4110.5,0.56710982]
[1759152839061,0.74499,4110.6,4110.5,1.00480982]
[1759152839356,0.3073,4110.6,4110.5,1.00480982]
[1759152839549,0.43767,4110.8,4110.5,0.38490982]
[1759152839755,0.43766,4110.9,4110.8,0.75046]
[1759152840354,0.77506,4110.9,4110.8,0.3128]
[1759152840666,0.77509,4110.6,4110.5,0.00230982]
[1759152840860,0.43768,4110.7,4110.6,0.75048]
[1759152841060,0.43767,4110.8,4110.7,0.75048]
[1759152841260,0.77506,4110.9,4110.8,0.3128]
[1759152841558,0.77509,4110.6,4110.5,0.00230982]
[1759152841766,0.77509,4110.6,4110.5,0.25430982]
[1759152842065,0.77509,4110.6,4110.5,0.00230982]
[1759152842251,0.77509,4110.6,4110.5,0.25430982]
[1759152843367,0.3374,4110.6,4110.5,0.69200982]
[1759152843566,0.43761,4111.3,4110.7,1.407]
[1759152843765,0.4376,4111.4,4111.3,0.4376]
[1759152843958,0.43759,4111.5,4111.3,0.252]
[1759152844166,1.43128,4111.9,4111.3,0.68961]
[1759152844563,0.1307,4112.0,4111.3,0.68961]
[1759152844564,0.3374,4111.7,4111.3,0.5648]
[1759152844767,0.775,4111.4,4111.3,0.5648]
[1759152845175,1.09407,4111.2,4110.5,1.73031817]
[1759152845360,0.43769,4110.6,4110.5,0.00230982]
[1759152845567,0.77509,4110.6,4110.5,0.25430982]
[1759152845772,0.77509,4110.6,4110.5,0.00230982]
[1759152846068,0.90675,4110.0,4109.9,3.2078]
[1759152846274,0.43793,4108.3,4108.1,1.72800835]
[1759152846460,0.3374,4108.2,4107.6,0.3128]
[1759152846664,0.77535,4108.2,4107.9,0.43797]
[1759152846866,41.1374,4108.9,4108.0,0.1306]
[1759152847066,40.80286192,4108.9,4108.1,0.3128]
[1759152847270,0.00286192,4108.9,4108.8,0.3128]
[1759152847471,0.00286192,4108.9,4108.8,0.5658]
[1759152848272,0.34026192,4108.9,4108.8,0.253]
[1759152848963,0.34026192,4108.9,4108.4,0.3128]
[1759152849164,0.00286192,4108.9,4108.5,0.253]
[1759152849366,0.3374,4108.8,4108.5,0.5658]
[1759152849569,0.43794,4108.3,4108.0,0.31450484]
[1759152849875,0.3374,4108.1,4108.0,0.00170484]
[1759152850071,0.3374,4108.1,4108.0,0.25470484]
[1759152850277,0.43794,4108.3,4108.1,0.3128]
[1759152850569,0.3374,4108.1,4108.0,0.00170484]
[1759152850768,0.3374,4108.1,4108.0,0.22870484]
[1759152852673,0.43791,4108.5,4108.4,0.3128]
[1759152852876,0.3374,4108.3,4108.1,0.75075]
[1759152853275,0.3374,4108.3,4108.1,0.43795]
[1759152853475,0.3374,4108.3,4108.2,0.3128]
[1759152853771,0.00286192,4108.9,4108.8,0.3332]
[1759152853968,0.00286192,4108.9,4108.8,0.5862]
[1759152854972,0.00286192,4108.9,4108.7,0.43788]
[1759152854973,0.3182,4108.8,4108.0,0.12600484]
[1759152855179,0.3182,4108.5,4108.2,0.3332]
[1759152855379,0.75612,4108.4,4108.2,0.77114]
[1759152855574,0.75612,4108.4,4108.3,0.3332]
[1759152855880,0.75611,4108.5,4108.3,0.202]
[1759152856176,0.3182,4108.4,4108.3,0.202]
[1759152859180,40.8,4108.5,4108.3,0.202]
[1759152859181,40.8,4108.5,4108.4,0.3332]
[1759152859481,40.8,4108.5,4108.3,0.202]
[1759152859482,0.75612,4108.4,4108.3,0.202]
[1759152859782,0.75615,4108.1,4108.0,0.00170484]
[1759152861783,0.3182,4108.1,4108.0,0.00170484]
[1759152863583,0.3182,4107.8,4107.2,0.3332]
[1759152863879,0.43803,4107.4,4107.1,0.253]
[1759152864073,0.7571,4107.7,4107.5,0.43801]
[1759152864276,0.438,4107.7,4107.6,0.3283]
[1759152864476,0.438,4107.7,4107.6,0.33006597]
[1759152864882,0.7571,4107.7,4107.6,0.00176597]
[1759152865783,5.7571,4107.7,4107.6,0.00176597]
[1759152865981,0.7572,4106.7,4106.6,0.45511]
[1759152866182,0.3191,4106.7,4106.6,1.03641]
[1759152866687,0.7572,4106.7,4106.6,1.03641]
[1759152866888,0.7572,4106.7,4106.6,0.58441076]
[1759152867078,0.43808,4107.0,4106.6,0.58441076]
[1759152867279,0.43809,4106.8,4106.7,0.4381]
[1759152867484,0.43809,4106.8,4106.7,0.7664]
[1759152867685,0.75719,4106.8,4106.7,0.7664]
[1759152868086,0.43805,4107.2,4107.1,0.3283]
[1759152868283,0.43802,4107.6,4107.3,0.43803]
[1759152868486,0.43801,4107.6,4107.5,0.43801]
[1759152868690,0.43801,4107.6,4107.5,0.76631]
[1759152868884,41.23801,4107.6,4107.5,0.76631]
[1759152869084,0.3191,4107.5,4107.4,1.01933]
[1759152869488,0.43801,4107.6,4107.5,0.43801]
[1759152869792,0.43795,4108.1,4108.0,0.76626]
[1759152870083,0.75708,4107.8,4107.7,0.7663]
[1759152870387,40.8,4108.4,4107.6,1.09501]
[1759152870577,0.32196192,4108.9,4107.6,1.09501]
[1759152870783,0.43788,4108.8,4108.7,0.3283]
[1759152870990,0.3191,4108.7,4108.6,0.253]
[1759152871388,0.75703,4108.3,4108.2,0.3283]
[1759152871586,0.3191,4108.3,4108.2,0.5813]
[1759152871984,0.43792,4108.4,4108.2,1.01923]
[1759152872179,0.43792,4108.4,4108.2,0.253]
[1759152872384,0.3191,4108.3,4108.2,0.253]
[1759152872694,0.3191,4108.4,4108.2,0.253]
[1759152872893,0.43792,4108.4,4108.2,0.253]
[1759152873186,0.43792,4108.4,4108.2,0.5813]
[1759152873392,0.43792,4108.4,4108.3,0.3283]
[1759152873981,0.75702,4108.4,4108.3,0.3283]
[1759152874581,1.09756192,4108.9,4108.5,0.1355]
[1759152874582,0.43789,4108.7,4108.5,0.1355]
[1759152874896,0.43789,4108.7,4108.6,0.3283]
[1759152875394,0.00286192,4108.9,4108.8,0.3283]
[1759152876500,0.43776,4109.9,4109.8,0.76607]
[1759152876788,0.43775,4110.1,4110.0,0.3283]
[1759152877387,0.75685,4110.1,4110.0,0.3283]
[1759152877591,0.75990536,4110.1,4110.0,0.00201338]
[1759152877891,0.75990536,4110.1,4110.0,0.25501338]
[1759152878195,0.75990536,4110.1,4110.0,0.00201338]
[1759152878396,41.55990536,4110.1,4110.0,0.00201338]
[1759152879193,46.55990536,4110.1,4110.0,1.338e-05]
[1759152879388,42.08125313,4110.1,4110.0,1.338e-05]
[1759152880298,47.08125313,4110.1,4110.0,1.338e-05]
[1759152880492,42.08125313,4110.1,4110.0,1.338e-05]
[1759152881398,47.08125313,4110.1,4110.0,1.338e-05]
[1759152882095,1.09489,4108.1,4106.8,1.72800835]
[1759152882298,0.3191,4107.7,4107.1,0.5813]
[1759152882798,0.1324,4108.5,4107.2,0.76635]
[1759152882799,0.43803,4107.4,4107.2,0.76635]
[1759152882994,0.4515,4108.0,4107.3,0.3283]
[1759152883201,1.54642,4108.0,4107.3,0.33016482]
[1759152883797,0.4515,4108.0,4107.3,0.76820482]
[1759152884000,40.8,4107.9,4107.3,0.33016482]
[1759152884396,0.43799,4107.8,4107.6,0.438]
[1759152884592,0.75711,4107.6,4107.4,0.3283]
[1759152884796,0.75711,4107.6,4107.3,0.00186482]
[1759152884797,0.43803,4107.4,4107.3,0.00186482]
[1759152885093,0.75713,4107.4,4107.3,0.00186482]
[1759152885297,5.75713,4107.4,4107.3,0.00186482]
[1759152886796,46.55713,4107.4,4107.3,0.00186482]
[1759152886995,40.8,4107.4,4107.3,0.33016482]
[1759152887193,0.3191,4108.4,4107.7,0.43799]
[1759152887397,0.3191,4108.4,4107.5,0.3885]
[1759152887599,41.1191,4108.4,4107.9,0.43797]
[1759152887805,0.43791,4108.6,4107.7,1.42329]
[1759152887998,0.43788,4108.8,4108.0,1.23042]
[1759152888199,0.75702,4108.4,4108.1,0.3283]
[1759152888497,0.3191,4108.9,4108.3,0.43793]
[1759152888697,0.3191,4109.1,4108.4,0.76622]
[1759152888900,0.43791,4108.6,4108.4,0.3283]
[1759152889098,0.75701,4108.6,4108.4,0.3283]
[1759152889302,0.3191,4109.0,4108.5,0.3283]
[1759152889505,0.3191,4109.0,4108.2,0.253]
[1759152889506,0.43789,4108.7,4108.6,0.7662]
[1759152889806,0.43789,4108.7,4108.6,0.3283]
[1759152891008,0.43793,4108.4,4108.3,0.3283]
[1759152891410,0.4379,4108.6,4108.5,0.3283]
[1759152892006,0.75701,4108.6,4108.2,0.5813]
[1759152892308,0.43793,4108.3,4108.2,0.5813]
[1759152892900,0.43793,4108.4,4108.3,0.3283]
[1759152893110,0.3191,4109.1,4108.5,0.4379]
[1759152893298,0.4379,4108.7,4108.6,0.3283]
[1759152893504,0.3191,4109.9,4109.2,0.3283]
[1759152893704,0.43779,4109.7,4109.5,0.4638]
[1759152893906,0.43779,4109.7,4109.6,0.3283]
[1759152894110,0.43782,4109.4,4109.3,0.5686]
[1759152894311,0.43781,4109.5,4109.3,1.00642]
[1759152894500,0.43781,4109.5,4109.4,0.3156]
[1759152895201,0.3095,4109.4,4109.3,0.253]
[1759152895400,0.1316,4109.5,4108.9,0.75346]
[1759152895606,0.3095,4109.3,4109.2,0.216]
[1759152895798,0.43782,4109.4,4109.3,0.3156]
[1759152896603,0.4378,4109.6,4109.5,0.3156]
[1759152896812,1.40385,4110.2,4109.2,0.65383]
[1759152897016,0.43781,4109.5,4109.4,0.3156]
[1759152897700,0.3095,4109.6,4109.0,0.43786]
[1759152897906,0.43784,4109.3,4109.2,0.43784]
[1759152898206,0.43784,4109.3,4109.2,0.3156]
[1759152899011,0.43775,4110.0,4109.7,0.43778]
[1759152899221,0.43778,4109.8,4109.7,0.75338]
[1759152899607,0.00305536,4110.1,4109.6,0.3156]
[1759152899808,0.00305536,4110.1,4109.5,0.125]
[1759152899809,0.43782,4109.4,4109.1,0.43785]
[1759152900112,0.43783,4109.3,4109.2,0.253]
[1759152900309,0.3095,4109.4,4108.8,0.75348]
[1759152900504,0.3095,4109.4,4109.1,0.253]
[1759152900708,1.09434,4110.2,4109.6,0.43779]
[1759152900907,0.43778,4109.7,4109.6,0.3156]
[1759152901116,0.74728,4109.7,4109.6,0.3156]
[1759152901310,1.09448,4109.7,4109.3,0.253]
[1759152901517,0.43781,4109.4,4109.3,0.253]
[1759152901810,0.74731,4109.4,4109.3,0.253]
[1759152902015,0.3095,4109.8,4109.1,0.3156]
[1759152902316,1.09455,4109.4,4109.1,0.3156]
[1759152902507,1.09455,4109.4,4108.4,1.0948]
[1759152902508,0.3095,4108.9,4108.3,0.43792]
[1759152902704,1.22626,4109.0,4108.4,0.69092]
[1759152902904,0.43791,4108.5,4108.4,0.5686]
[1759152903106,0.43791,4108.5,4107.3,1.09695482]
[1759152903107,0.1316,4108.0,4107.5,0.75361]
[1759152903416,1.09468,4108.9,4107.5,0.75361]
[1759152903417,0.3095,4108.9,4108.2,0.3156]
[1759152903617,0.1316,4110.0,4108.6,0.3156]
[1759152903618,41.1095,4108.8,4108.6,0.3156]
[1759152903913,0.4379,4108.6,4108.5,0.3156]
[1759152904115,0.7474,4108.6,4108.5,0.3156]
[1759152904417,41.23788,4108.8,4108.5,0.3156]
[1759152904606,0.43791,4108.5,4108.4,0.254]
[1759152904812,0.4379,4108.7,4108.4,0.254]
[1759152905014,0.43795,4108.1,4108.0,0.125]
[1759152905216,0.3095,4108.9,4108.1,0.3156]
[1759152905415,0.3095,4108.2,4107.6,0.3156]
[1759152905616,0.43799,4107.8,4107.6,0.3156]
[1759152905814,0.43802,4107.6,4107.3,0.00186482]
[1759152906015,0.43802,4107.6,4107.5,0.3156]
[1759152906222,0.3095,4107.9,4107.6,0.438]
[1759152906513,0.3095,4107.9,4107.8,0.3156]
[1759152906917,0.1316,4108.5,4107.9,0.3156]
[1759152906918,40.8,4108.3,4107.9,0.3156]
[1759152907111,1.09473,4108.8,4108.3,0.3156]
[1759152907312,0.43792,4108.4,4108.3,0.5696]
[1759152907610,0.3095,4108.1,4107.6,0.3156]
[1759152907814,0.1316,4108.5,4107.7,0.254]
[1759152907815,0.4411,4108.5,4107.7,0.254]
[1759152908123,0.43794,4108.2,4108.0,0.43795]
[1759152908315,0.43794,4108.2,4108.1,0.3156]
[1759152908613,0.3095,4108.7,4108.5,0.3156]
[1759152908823,0.43791,4108.6,4108.5,0.3156]
[1759152909010,0.74739,4108.7,4108.5,0.3156]
[1759152909215,0.3095,4108.7,4108.6,0.3156]
[1759152909422,0.74738,4108.8,4108.6,0.3156]
[1759152909718,0.3095,4108.7,4108.6,0.3156]
[1759152909918,0.3095,4108.5,4108.4,0.254]
[1759152910522,0.3095,4108.5,4108.4,0.5696]
[1759152910820,0.3095,4109.0,4108.4,5.254]
[1759152911021,0.3095,4109.0,4108.7,0.3156]
[1759152911022,0.43788,4108.8,4108.7,0.3156]
[1759152911623,0.3095,4108.7,4108.5,0.3156]
[1759152911921,0.4379,4108.6,4108.5,0.5629]
[1759152912119,0.4379,4108.6,4108.5,0.125]
[1759152912427,0.43788,4108.8,4108.7,0.3156]
[1759152912924,0.4379,4108.6,4108.5,0.3156]
[1759152913224,0.74741,4108.5,4108.4,0.69192]
[1759152913418,0.74741,4108.5,4108.1,0.0243]
[1759152913419,0.74694,4108.2,4108.1,0.0243]
[1759152913615,0.74694,4108.2,4108.1,0.2783]
[1759152913815,0.74694,4108.2,4108.1,0.254]
[1759152914423,0.74694,4108.2,4108.1,0.99925]
[1759152915020,0.43794,4108.2,4108.1,0.99925]
[1759152915417,0.43794,4108.2,4108.1,0.5613]
[1759152915818,0.43792,4108.4,4108.1,0.254]
[1759152916127,0.43794,4108.2,4108.1,0.69195]
[1759152916526,0.309,4108.5,4108.1,0.69195]
[1759152916720,0.43789,4108.7,4108.2,0.3073]
[1759152916920,0.309,4109.0,4108.2,0.3073]
[1759152917120,0.309,4108.9,4108.6,0.3073]
[1759152917320,0.43787,4108.9,4108.8,0.74518]
[1759152917524,0.43776,4109.9,4109.0,0.1273]
[1759152917724,0.00305536,4110.1,4109.9,0.43775]
[1759152917932,0.00305536,4110.1,4110.0,0.6886]
[1759152919228,0.43763,4111.2,4110.9,0.74495]
[1759152919428,0.43762,4111.2,4111.1,0.3073]
[1759152919723,1.09403,4111.4,4110.2,0.43772]
[1759152919929,0.309,4110.2,4110.1,0.3073]
[1759152920133,0.74678,4109.8,4109.6,0.3073]
[1759152920321,0.0022477,4109.8,4109.7,0.5613]
[1759152920524,0.3112477,4109.8,4109.7,0.254]
[1759152920834,0.0022477,4109.8,4109.7,0.5613]
[1759152921234,0.74678,4109.7,4109.6,0.3102365]
[1759152921532,0.74678,4109.7,4109.6,0.0029365]
[1759152921729,0.0022477,4109.8,4109.6,0.2569365]
[1759152921929,0.0022477,4109.8,4109.7,0.3073]
[1759152922536,0.309,4111.1,4110.7,0.3073]
[1759152922722,0.43766,4110.9,4110.8,0.5613]
[1759152923029,0.309,4110.3,4110.1,0.43773]
[1759152923229,0.309,4110.3,4110.2,0.216]
[1759152923427,0.00258174,4110.3,4110.2,0.5233]
[1759152924829,0.00258174,4110.3,4110.2,0.3073]
[1759152925133,0.44030174,4110.3,4110.2,0.254]
[1759152925331,0.77680174,4110.3,4110.2,0.254]
[1759152925529,0.00258174,4110.3,4110.2,0.5701]
[1759152925833,0.00258174,4110.3,4110.2,0.254]
[1759152925834,0.33908174,4110.3,4110.2,0.254]
[1759152926031,0.00258174,4110.3,4110.2,0.5701]
[1759152926233,0.43777,4109.8,4109.7,0.3161]
[1759152926427,0.43777,4109.8,4109.7,0.5701]
[1759152926731,0.43775,4110.1,4109.9,0.3161]
[1759152926929,0.00258174,4110.3,4110.2,0.3161]
[1759152927131,0.00258174,4110.3,4110.2,0.5701]
[1759152927630,0.3365,4110.2,4109.9,0.3161]
[1759152927935,0.3365,4110.2,4109.8,0.46207]
[1759152927936,0.00258174,4110.3,4110.2,0.3161]
[1759152928322,0.44030174,4110.3,4110.2,0.3161]
[1759152928724,0.00258174,4110.3,4110.2,0.3161]
[1759152928924,0.33908174,4110.3,4110.2,0.3161]
[1759152929425,0.33908174,4110.3,4109.8,0.0243]
[1759152929426,0.77426,4109.9,4109.8,0.0243]
[1759152929626,0.77426,4109.9,4109.8,0.2783]
[1759152929938,0.43776,4109.9,4109.8,0.5944]
[1759152930127,0.43776,4109.9,4109.8,0.5701]
[1759152930327,0.43776,4109.9,4109.8,0.254]
[1759152930328,0.77426,4109.9,4109.8,0.254]
[1759152930527,0.77428,4109.7,4109.6,0.0029365]
[1759152930843,0.77428,4109.7,4109.6,0.2569365]
[1759152931226,0.3365,4110.1,4109.6,0.6947265]
[1759152931437,0.43778,4109.7,4109.6,0.2569365]
[1759152931734,0.43773,4110.2,4110.0,0.43775]
[1759152931933,0.00258174,4110.3,4110.2,0.75383]
[1759152932238,0.3365,4112.4,4111.6,0.3161]
[1759152932440,0.43752,4112.2,4112.0,0.3161]
[1759152932733,0.43748,4112.6,4111.8,0.3161]
[1759152932932,0.43751,4112.3,4112.0,0.43753]
[1759152933135,0.00296125,4112.3,4112.2,0.75361]
[1759152933430,0.00296125,4112.3,4112.2,0.5711]
[1759152933637,0.4374,4113.3,4112.3,0.3161]
[1759152933836,0.43738,4113.5,4113.3,0.3161]
[1759152934031,0.43738,4113.5,4113.4,0.5711]
[1759152934230,0.77388,4113.5,4113.4,0.213]
[1759152934430,0.1335,4113.5,4113.4,0.255]
[1759152934638,0.90961706,4113.5,4113.4,0.25761967]
[1759152935333,0.90961706,4113.5,4113.4,0.00261967]
[1759152935539,5.90961706,4113.5,4113.4,0.00261967]
[1759152936254,0.3365,4113.2,4112.8,0.255]
[1759152936438,0.43753,4112.1,4112.0,0.0243]
[1759152936637,0.43745,4112.9,4112.5,0.3161]
[1759152936845,0.43746,4112.8,4112.7,0.3161]
[1759152937035,0.4375,4112.4,4112.0,0.57333]
[1759152937334,0.3365,4112.7,4112.2,0.3161]
[1759152937335,0.43751,4112.3,4112.2,0.3161]
[1759152937737,0.3365,4113.2,4112.2,0.3161]
[1759152937934,1.09351,4113.3,4112.0,0.57591772]
[1759152938138,0.3365,4113.1,4112.1,0.096]
[1759152938335,0.3365,4112.9,4112.2,0.3161]
[1759152938531,0.43744,4112.9,4112.6,0.43746]
[1759152938732,0.43742,4113.1,4112.7,0.69246]
[1759152938930,0.47223706,4113.5,4112.9,0.43744]
[1759152939238,0.43744,4113.0,4112.9,0.3161]
[1759152939444,0.43741,4113.3,4112.7,0.255]
[1759152939736,0.4374,4113.3,4112.9,0.43744]
[1759152940043,0.43742,4113.1,4113.0,0.3161]
[1759152940435,0.43739,4113.4,4113.0,0.43742]
[1759152940637,0.00223706,4113.5,4112.8,0.3161]
[1759152940841,0.00223706,4113.5,4113.4,0.3161]
[1759152941134,0.00223706,4113.5,4113.4,0.5711]
[1759152942239,0.77392,4113.2,4113.0,0.3161]
[1759152942445,0.77392,4113.2,4113.1,0.255]
[1759152942638,0.43962706,4113.5,4113.1,0.5711]
[1759152942839,0.43739,4113.4,4113.2,0.3161]
[1759152943044,0.00223706,4113.5,4112.5,0.1358]
[1759152943045,0.3365,4113.3,4112.6,37.934]
[1759152943238,0.77396,4112.7,4112.6,37.934]
[1759152943542,0.77396,4112.7,4112.3,0.7536]
[1759152943543,0.43749,4112.4,4112.3,0.3161]
[1759152943740,0.43753,4112.1,4112.0,0.31868772]
[1759152943932,0.77403,4112.1,4112.0,0.00258772]
[1759152944246,0.43752,4112.2,4112.1,0.3161]
[1759152944445,0.3365,4112.7,4112.1,0.3161]
[1759152944645,0.43752,4112.2,4112.1,0.3161]
[1759152944847,0.3365,4112.7,4112.0,0.24938772]
[1759152945044,0.43748,4112.6,4112.5,0.3161]
[1759152945242,0.43748,4112.6,4112.5,0.7069]
[1759152945441,0.43752,4112.2,4112.0,0.00258772]
[1759152945740,0.43749,4112.5,4112.2,0.3161]
[1759152945941,0.4375,4112.4,4112.2,0.3161]
[1759152946137,0.4375,4112.4,4112.2,0.46182]
[1759152946346,0.4375,4112.4,4112.3,0.3161]
[1759152946641,0.4375,4112.4,4112.2,0.0243]
[1759152946642,0.3365,4112.3,4112.2,0.0243]
[1759152946847,0.3365,4112.3,4112.2,0.01364739]
[1759152947243,0.3365,4112.3,4111.2,0.3161]
[1759152947244,0.43774,4110.1,4109.9,1.73625224]
[1759152947550,0.1335,4110.0,4108.5,0.3938]
[1759152947746,0.43783,4109.3,4108.7,0.43788]
[1759152947946,0.3365,4109.4,4108.5,0.7099]
[1759152948140,0.3365,4109.4,4108.5,0.258]
[1759152948443,0.43788,4108.8,4108.5,0.26111587]
[1759152948643,0.3365,4108.6,4108.5,0.26111587]
[1759152948851,0.00283902,4109.4,4108.5,0.26111587]
[1759152949042,0.43788,4108.8,4108.5,0.26111587]
[1759152949248,0.43787,4108.9,4108.5,0.26111587]
[1759152949441,0.43788,4108.8,4108.5,0.26111587]
[1759152949643,0.43789,4108.7,4108.5,0.26111587]
[1759152949946,0.77439,4108.7,4108.5,0.26111587]
[1759152950140,0.3365,4108.6,4108.5,0.26111587]
[1759152950336,0.43789,4108.7,4108.5,0.57721587]
[1759152950943,0.43788,4108.9,4108.5,0.26111587]
[1759152951141,0.4379,4108.7,4108.5,0.26111587]
[1759152951744,0.77448,4107.9,4107.8,0.0243]
[1759152951945,0.1335,4108.0,4106.8,37.94]
[1759152952243,0.3365,4106.8,4106.7,0.259]
[1759152952640,0.3365,4106.8,4106.7,0.26190139]
[1759152953039,0.77449,4107.8,4106.7,0.57800139]
[1759152953242,0.77449,4107.8,4106.8,0.3161]
[1759152953447,0.43797,4107.9,4107.3,0.3161]
[1759152953655,0.3365,4108.3,4107.4,0.58602]
[1759152953951,0.47,4109.0,4107.6,0.322]
[1759152954147,0.3365,4109.0,4107.6,0.322]
[1759152954339,0.3365,4109.0,4107.5,0.1358]
[1759152954340,0.43783,4109.3,4107.8,0.322]
[1759152954545,0.43778,4109.7,4109.1,0.43784]
[1759152954753,0.43777,4109.8,4109.3,0.322]
[1759152955050,0.1335,4110.5,4109.6,0.43779]
[1759152955348,0.43772,4110.3,4109.9,0.43775]
[1759152955551,0.43772,4110.3,4110.0,0.259]
[1759152955755,0.3101,4110.9,4110.0,0.69674]
[1759152956144,0.43773,4110.2,4110.0,0.26108115]
[1759152956342,0.3101,4110.5,4110.1,0.322]
[1759152956641,0.00240092,4110.9,4110.6,0.43767]
[1759152956844,0.00240092,4110.9,4110.8,0.322]
[1759152959045,0.1259,4112.5,4111.1,0.322]
[1759152959351,0.43746,4112.8,4112.4,0.43748]
[1759152959557,0.3101,4113.4,4112.5,0.259]
[1759152959748,0.43747,4112.7,4112.5,0.259]
[1759152959948,0.3101,4113.4,4112.6,0.43747]
[1759152960144,0.43746,4112.7,4112.5,0.259]
[1759152960343,0.43746,4112.7,4112.5,0.581]
[1759152960549,0.3101,4112.7,4112.5,0.259]
[1759152960753,0.0020836,4113.4,4113.0,0.43743]
[1759152960953,0.4394736,4113.4,4113.1,0.322]
[1759152961254,0.3101,4113.1,4113.0,0.00184586]
[1759152961657,0.3101,4112.8,4111.9,0.322]
[1759152961960,0.74762,4112.2,4112.0,0.259]
[1759152962158,0.43754,4112.0,4111.9,0.322]
[1759152962451,0.3101,4112.2,4112.1,0.259]
[1759152962648,0.3101,4112.2,4112.1,0.260828]
[1759152963851,1.09383,4112.1,4110.9,37.942]
[1759152964061,0.4376,4111.4,4111.1,0.322]
[1759152964652,0.43762,4111.3,4111.1,0.322]
[1759152964852,0.43763,4111.2,4111.1,0.00192891]
[1759152965051,0.74773,4111.2,4111.1,0.00192891]
[1759152965257,0.3101,4111.2,4111.1,0.00192891]
[1759152965957,0.3101,4112.0,4111.3,0.43761]
[1759152966160,0.436,4112.5,4111.4,0.322]
[1759152966462,0.43755,4111.9,4111.7,0.322]
[1759152966759,1.09374,4112.4,4111.2,0.322]
[1759152967062,0.43756,4111.9,4111.6,0.322]
[1759152967254,0.43756,4111.9,4111.7,0.322]
[1759152967454,0.3101,4112.4,4111.7,0.322]
[1759152967653,0.3101,4111.9,4111.3,0.259]
[1759152967854,0.43759,4111.5,4111.1,0.32392891]
[1759152968060,0.74771,4111.4,4111.2,0.119]
[1759152968263,0.74771,4111.4,4111.2,0.55662]
[1759152968559,0.74772,4111.2,4111.1,0.00192891]
[1759152968962,5.74772,4111.2,4111.1,0.00192891]
[1759152969659,5.74772,4111.2,4111.1,2.891e-05]
[1759152969852,0.74775,4110.9,4110.8,0.259]
[1759152970661,1.22002,4111.0,4109.8,0.322]
[1759152970859,0.74775,4110.9,4110.8,0.00258669]
[1759152971252,0.3101,4110.9,4110.8,0.00258669]
[1759152971452,0.43763,4111.1,4110.9,0.322]
[1759152971855,0.43765,4111.0,4110.8,0.76224669]
[1759152972051,0.43763,4111.1,4111.0,0.43764]
[1759152972259,0.43765,4111.0,4110.9,0.322]
[1759152972460,1.09395,4111.6,4110.9,0.322]
[1759152972461,0.43763,4111.2,4110.9,0.322]
[1759152972660,0.43763,4111.1,4111.0,0.322]
[1759152973056,1.09395,4111.6,4111.0,0.322]
[1759152973057,0.43762,4111.2,4111.0,0.322]
[1759152973263,0.3101,4111.5,4110.9,0.43765]
[1759152973465,0.43763,4111.1,4111.0,0.43764]
[1759152973659,0.3101,4111.5,4111.0,0.43764]
[1759152973861,1.21977,4112.0,4110.9,0.322]
[1759152974161,0.43759,4111.5,4111.4,0.75959]
[1759152974466,0.43759,4111.5,4111.4,0.95359]
[1759152974664,0.43759,4111.5,4111.4,0.516]
[1759152975069,0.74769,4111.5,4111.4,0.194]
[1759152975265,0.3101,4111.5,4111.3,0.43761]
[1759152975456,0.3101,4111.5,4111.4,0.259]
[1759152975661,0.7477,4111.5,4111.4,0.259]
[1759152976061,0.74769,4111.5,4111.4,0.259]
[1759152976260,0.4376,4111.4,4111.2,0.43762]
[1759152976467,0.74769,4111.5,4111.3,0.259]
[1759152976863,0.74769,4111.5,4111.4,0.258]
[1759152977061,0.43756,4111.9,4111.8,0.76566]
[1759152977267,0.43758,4111.7,4111.4,0.5861]
[1759152977463,0.74868,4111.6,4111.5,0.258]
[1759152977765,0.74873,4111.2,4110.8,0.00258669]
[1759152977962,0.3111,4111.8,4111.1,0.3281]
[1759152978162,0.437,4112.5,4111.8,0.43755]
[1759152978358,0.43754,4112.0,4111.9,0.5861]
[1759152978869,0.43762,4111.3,4111.1,0.43763]
[1759152979072,0.1317,4112.0,4111.4,0.4376]
[1759152979268,0.1317,4112.0,4110.8,0.33068669]
[1759152979269,1.0939,4111.8,4110.8,0.33068669]
[1759152979466,1.09395,4111.6,4110.9,0.43765]
[1759152979666,0.3111,4111.8,4111.2,0.43762]
[1759152979974,0.3111,4111.8,4110.8,0.33068669]
[1759152979975,0.74875,4110.9,4110.8,0.00258669]
[1759152980273,0.74875,4110.9,4110.8,0.26158669]
[1759152981063,0.43764,4111.0,4110.9,0.76575]
[1759152981279,0.74875,4110.9,4110.8,0.26158669]
[1759152981475,0.3111,4111.3,4110.8,0.26158669]
[1759152981673,0.3111,4111.9,4111.0,0.1311]
[1759152981974,0.43759,4111.5,4111.1,0.3281]
[1759152982269,1.09381,4112.2,4111.6,0.76567]
[1759152982270,0.3111,4111.8,4111.6,0.76567]
[1759152982473,0.74866,4111.8,4111.7,0.258]